[Event "GrandPrix_29.05"]
[Site "Chess.com"]
[Date "2020.05.29"]
[Round "4"]
[White "eristeski7"]
[Black "0plaksin0"]
[Result "0-1"]
[WhiteElo "2058"]
[BlackElo "2188"]
[TimeControl "600+2"]
[EndTime "11:00:48 PDT"]
[Termination "0plaksin0 won on time"]

1. e4 {[%clk 0:10:01.9]} 1... c5 {[%clk 0:09:58.1]} 2. Nf3 {[%clk 0:10:00]} 2...
d6 {[%clk 0:09:59.4]} 3. d4 {[%clk 0:10:00.2]} 3... cxd4 {[%clk 0:10:01.3]} 4.
Nxd4 {[%clk 0:10:01.9]} 4... Nf6 {[%clk 0:10:02.3]} 5. Nc3 {[%clk 0:10:03.6]}
5... g6 {[%clk 0:10:03.5]} 6. Be3 {[%clk 0:10:03.8]} 6... Bg7 {[%clk 0:10:04.8]}
7. f3 {[%clk 0:10:05.4]} 7... O-O {[%clk 0:10:04.1]} 8. Qd2 {[%clk 0:10:05.9]}
8... Nc6 {[%clk 0:10:05.7]} 9. O-O-O {[%clk 0:10:03.4]} 9... Nxd4 {[%clk
0:10:06.1]} 10. Bxd4 {[%clk 0:10:02.8]} 10... Be6 {[%clk 0:10:08]} 11. h4 {[%clk
0:10:01.6]} 11... Qa5 {[%clk 0:10:06.9]} 12. h5 {[%clk 0:09:36.7]} 12... Bxa2
{[%clk 0:09:13.4]} 13. hxg6 {[%clk 0:08:46.8]} 13... hxg6 {[%clk 0:09:08.6]} 14.
g4 {[%clk 0:08:23.6]} 14... Be6 {[%clk 0:08:35.4]} 15. Qh2 {[%clk 0:07:31]}
15... Rfc8 {[%clk 0:08:32.4]} 16. Be2 {[%clk 0:06:16.7]} 16... Qa1+ {[%clk
0:07:25.1]} 17. Kd2 {[%clk 0:06:16.4]} 17... Qxb2 {[%clk 0:07:23.4]} 18. Rb1
{[%clk 0:05:10.2]} 18... Qa3 {[%clk 0:07:20.9]} 19. Nb5 {[%clk 0:05:04.4]} 19...
Qa5+ {[%clk 0:06:48.1]} 20. c3 {[%clk 0:05:04.2]} 20... Nxe4+ {[%clk 0:06:01]}
21. fxe4 {[%clk 0:03:16.7]} 21... Bxd4 {[%clk 0:05:58.9]} 22. Nxd4 {[%clk
0:03:16]} 22... Qxc3+ {[%clk 0:05:56.7]} 23. Kd1 {[%clk 0:03:17.9]} 23... Qxd4+
{[%clk 0:05:52.4]} 24. Ke1 {[%clk 0:03:17.2]} 24... Qc3+ {[%clk 0:04:59]} 25.
Kf1 {[%clk 0:03:16]} 25... Bc4 {[%clk 0:04:28.4]} 26. Qh7+ {[%clk 0:02:43]}
26... Kf8 {[%clk 0:04:27.3]} 27. Qh6+ {[%clk 0:02:21.7]} 27... Ke8 {[%clk
0:04:01.8]} 28. Qh8+ {[%clk 0:01:39.5]} 28... Qxh8 {[%clk 0:04:00.6]} 29. Rxh8+
{[%clk 0:01:39.3]} 29... Kd7 {[%clk 0:03:59.2]} 30. Rxb7+ {[%clk 0:00:43.9]}
30... Ke6 {[%clk 0:03:58]} 31. Bxc4+ {[%clk 0:00:41.5]} 31... Kf6 {[%clk
0:02:09]} 32. Rxc8 {[%clk 0:00:38.1]} 32... Rxc8 {[%clk 0:02:10]} 33. Bd3 {[%clk
0:00:38.2]} 33... a5 {[%clk 0:00:39.7]} 34. Ra7 {[%clk 0:00:37.4]} 34... Rc5
{[%clk 0:00:40.5]} 35. Kf2 {[%clk 0:00:37.4]} 35... Re5 {[%clk 0:00:41.2]} 36.
Kf3 {[%clk 0:00:32.7]} 36... Kg5 {[%clk 0:00:40.7]} 37. Rd7 {[%clk 0:00:11]}
37... Kf6 {[%clk 0:00:22]} 38. Kf4 {[%clk 0:00:04.8]} 38... g5+ {[%clk
0:00:19.8]} 39. Kf3 {[%clk 0:00:04.5]} 39... Rc5 {[%clk 0:00:20.7]} 40. Ra7
{[%clk 0:00:05.5]} 40... Rc3 {[%clk 0:00:14.7]} 41. Ke3 {[%clk 0:00:06.7]} 41...
Ra3 {[%clk 0:00:15.9]} 42. Kd4 {[%clk 0:00:07.5]} 42... Ra1 {[%clk 0:00:13.4]}
43. Bb5 {[%clk 0:00:05.8]} 43... Rd1+ {[%clk 0:00:08.9]} 44. Bd3 {[%clk
0:00:04.9]} 44... Ra1 {[%clk 0:00:09.7]} 45. Bb5 {[%clk 0:00:05.1]} 45... Ra2
{[%clk 0:00:08.1]} 46. Bc4 {[%clk 0:00:05.6]} 46... Rg2 {[%clk 0:00:08.1]} 47.
Rxa5 {[%clk 0:00:05.1]} 47... Rxg4 {[%clk 0:00:09]} 48. Bd3 {[%clk 0:00:06.1]}
48... Rf4 {[%clk 0:00:07.4]} 49. Ke3 {[%clk 0:00:03.7]} 49... Rh4 {[%clk
0:00:07.7]} 0-1

[Event "GrandPrix_29.05"]
[Site "Chess.com"]
[Date "2020.05.29"]
[Round "4"]
[White "Gurvich_Vitaly"]
[Black "vladislavkovalev"]
[Result "0-1"]
[WhiteElo "2321"]
[BlackElo "2697"]
[TimeControl "600+2"]
[EndTime "11:00:49 PDT"]
[Termination "vladislavkovalev won by checkmate"]

1. e4 {[%clk 0:10:01.9]} 1... e5 {[%clk 0:10:00.8]} 2. Nf3 {[%clk 0:10:02.5]}
2... Nc6 {[%clk 0:10:02.1]} 3. Bb5 {[%clk 0:10:02.8]} 3... a6 {[%clk 0:10:03.5]}
4. Bxc6 {[%clk 0:10:03.3]} 4... dxc6 {[%clk 0:10:05.4]} 5. O-O {[%clk
0:10:03.9]} 5... f6 {[%clk 0:09:42.2]} 6. d4 {[%clk 0:10:03.7]} 6... exd4 {[%clk
0:09:43.7]} 7. Nxd4 {[%clk 0:10:05.5]} 7... c5 {[%clk 0:08:57.8]} 8. Nb3 {[%clk
0:10:04.9]} 8... Be6 {[%clk 0:08:48.4]} 9. Bf4 {[%clk 0:09:04.8]} 9... g5 {[%clk
0:08:24.1]} 10. Qxd8+ {[%clk 0:08:22.3]} 10... Kxd8 {[%clk 0:08:26]} 11. Be3
{[%clk 0:08:22.7]} 11... b6 {[%clk 0:08:24.6]} 12. a4 {[%clk 0:08:13.7]} 12...
a5 {[%clk 0:07:54]} 13. Nc3 {[%clk 0:08:12.8]} 13... Bd6 {[%clk 0:07:41.7]} 14.
f4 {[%clk 0:08:05.4]} 14... Nh6 {[%clk 0:06:37.4]} 15. fxg5 {[%clk 0:06:48.8]}
15... Ng4 {[%clk 0:06:36.7]} 16. Bf4 {[%clk 0:06:48.4]} 16... Bxf4 {[%clk
0:06:34.7]} 17. Rxf4 {[%clk 0:06:50.3]} 17... fxg5 {[%clk 0:06:36.1]} 18. Rd1+
{[%clk 0:06:18.5]} 18... Ke7 {[%clk 0:05:52.7]} 19. Nd5+ {[%clk 0:05:54.6]}
19... Bxd5 {[%clk 0:05:52.3]} 20. Rxg4 {[%clk 0:05:55.5]} 20... Bxb3 {[%clk
0:05:53.4]} 21. cxb3 {[%clk 0:05:57.4]} 21... h6 {[%clk 0:05:39.8]} 22. Rg3
{[%clk 0:05:50.3]} 22... Rad8 {[%clk 0:05:32.4]} 23. Rgd3 {[%clk 0:05:43]} 23...
Rxd3 {[%clk 0:05:26.2]} 24. Rxd3 {[%clk 0:05:44.9]} 24... Rf8 {[%clk 0:05:13.4]}
25. g3 {[%clk 0:05:36.9]} 25... g4 {[%clk 0:05:02.6]} 26. Kg2 {[%clk 0:05:29.6]}
26... Ke6 {[%clk 0:05:00.1]} 27. Rd5 {[%clk 0:05:25.6]} 27... Rf3 {[%clk
0:04:52.3]} 28. h3 {[%clk 0:05:05.8]} 28... Rxb3 {[%clk 0:04:48.2]} 29. hxg4
{[%clk 0:05:06.7]} 29... Rxb2+ {[%clk 0:04:49]} 30. Kf3 {[%clk 0:05:08]} 30...
c4 {[%clk 0:03:56]} 31. Rh5 {[%clk 0:04:40.8]} 31... c3 {[%clk 0:03:36.8]} 32.
Ke3 {[%clk 0:04:38.4]} 32... Rg2 {[%clk 0:02:03]} 33. Rxh6+ {[%clk 0:04:10.2]}
33... Kd7 {[%clk 0:02:03.8]} 34. Kf3 {[%clk 0:03:35.6]} 34... c2 {[%clk
0:02:00.8]} 35. Rh1 {[%clk 0:03:36.8]} 35... Rd2 {[%clk 0:01:54]} 36. Rc1 {[%clk
0:03:37.4]} 36... Rd3+ {[%clk 0:01:44.4]} 37. Kf4 {[%clk 0:03:00.5]} 37... Rc3
{[%clk 0:01:44.8]} 38. Ke5 {[%clk 0:02:29.4]} 38... Rc5+ {[%clk 0:01:35.2]} 39.
Kf6 {[%clk 0:01:58.8]} 39... Rc6+ {[%clk 0:01:36.1]} 40. Ke5 {[%clk 0:01:59]}
40... Rc4 {[%clk 0:01:32.2]} 41. Kf5 {[%clk 0:01:19]} 41... c6 {[%clk 0:01:29]}
42. g5 {[%clk 0:01:18.1]} 42... b5 {[%clk 0:01:30.2]} 43. axb5 {[%clk
0:01:12.9]} 43... cxb5 {[%clk 0:01:32.1]} 44. Kf6 {[%clk 0:01:09.4]} 44... Rc6+
{[%clk 0:01:30.3]} 45. Kf7 {[%clk 0:01:04.7]} 45... b4 {[%clk 0:01:31.4]} 46. g6
{[%clk 0:00:57.9]} 46... b3 {[%clk 0:01:32.6]} 47. g7 {[%clk 0:00:48.4]} 47...
Rc8 {[%clk 0:01:33.6]} 48. e5 {[%clk 0:00:42.4]} 48... b2 {[%clk 0:01:18.6]} 49.
Rxc2 {[%clk 0:00:41.6]} 49... Rxc2 {[%clk 0:01:15.2]} 50. g8=Q {[%clk 0:00:36]}
50... b1=Q {[%clk 0:01:02.2]} 51. Qe8+ {[%clk 0:00:27.3]} 51... Kc7 {[%clk
0:01:03.3]} 52. Qe7+ {[%clk 0:00:25.3]} 52... Kb8 {[%clk 0:00:38.6]} 53. Qd8+
{[%clk 0:00:21.3]} 53... Rc8 {[%clk 0:00:36.4]} 54. Qxa5 {[%clk 0:00:08.6]}
54... Qf5+ {[%clk 0:00:33.7]} 55. Ke7 {[%clk 0:00:05.1]} 55... Rc7+ {[%clk
0:00:33.4]} 56. Ke8 {[%clk 0:00:03.4]} 56... Qc8# {[%clk 0:00:33.2]} 0-1

[Event "GrandPrix_29.05"]
[Site "Chess.com"]
[Date "2020.05.29"]
[Round "4"]
[White "dzhumagaliev"]
[Black "ChessQueen"]
[Result "1-0"]
[WhiteElo "2174"]
[BlackElo "2064"]
[TimeControl "600+2"]
[EndTime "11:00:51 PDT"]
[Termination "dzhumagaliev won by resignation"]

1. h4 {[%clk 0:10:01.9]} 1... e5 {[%clk 0:09:48.4]} 2. h5 {[%clk 0:10:03.8]}
2... Nc6 {[%clk 0:09:39.8]} 3. c3 {[%clk 0:10:05.1]} 3... Bc5 {[%clk 0:09:20.8]}
4. d4 {[%clk 0:10:06.4]} 4... exd4 {[%clk 0:09:20.9]} 5. b4 {[%clk 0:10:07.7]}
5... Bb6 {[%clk 0:09:16.6]} 6. b5 {[%clk 0:10:08.5]} 6... Nce7 {[%clk
0:09:08.7]} 7. cxd4 {[%clk 0:10:09.1]} 7... Nf6 {[%clk 0:08:45.5]} 8. h6 {[%clk
0:10:08.6]} 8... g6 {[%clk 0:08:37.9]} 9. Nf3 {[%clk 0:10:04.7]} 9... d6 {[%clk
0:08:34.9]} 10. e3 {[%clk 0:09:56.2]} 10... Bf5 {[%clk 0:08:27.1]} 11. a4 {[%clk
0:09:50.5]} 11... Ba5+ {[%clk 0:08:19.3]} 12. Bd2 {[%clk 0:09:50.9]} 12... c6
{[%clk 0:08:01.3]} 13. Bxa5 {[%clk 0:09:15.7]} 13... Qxa5+ {[%clk 0:08:01.5]}
14. Qd2 {[%clk 0:09:17.3]} 14... Qxd2+ {[%clk 0:07:56.7]} 15. Nbxd2 {[%clk
0:09:19.2]} 15... O-O {[%clk 0:07:14.4]} 16. Nc4 {[%clk 0:09:06.5]} 16... Rfd8
{[%clk 0:07:02.4]} 17. Be2 {[%clk 0:08:53.8]} 17... Nfd5 {[%clk 0:06:37.6]} 18.
Kd2 {[%clk 0:08:07.9]} 18... Rac8 {[%clk 0:06:12.2]} 19. Rhc1 {[%clk 0:07:56.1]}
19... c5 {[%clk 0:05:58.2]} 20. Ng5 {[%clk 0:06:57.5]} 20... f6 {[%clk
0:05:14.5]} 21. Nf3 {[%clk 0:06:49.7]} 21... Nb4 {[%clk 0:05:05.1]} 22. Nb2
{[%clk 0:06:20.7]} 22... Be6 {[%clk 0:04:41.5]} 23. a5 {[%clk 0:03:53.1]} 23...
Nf5 {[%clk 0:04:30.5]} 24. Na4 {[%clk 0:02:56.2]} 24... cxd4 {[%clk 0:04:12.9]}
25. Nxd4 {[%clk 0:02:43.1]} 25... Nxd4 {[%clk 0:04:10.7]} 26. exd4 {[%clk
0:02:45]} 26... Kf7 {[%clk 0:02:44.8]} 27. Rab1 {[%clk 0:02:09.4]} 27... Nd5
{[%clk 0:02:23.2]} 28. b6 {[%clk 0:02:05.1]} 28... axb6 {[%clk 0:02:15.5]} 29.
Nxb6 {[%clk 0:02:03.3]} 29... Nxb6 {[%clk 0:01:45.6]} 30. Rxb6 {[%clk
0:02:05.2]} 30... Bd5 {[%clk 0:01:14.5]} 31. Rxd6 {[%clk 0:01:07.7]} 31... Bc6
{[%clk 0:00:54.5]} 32. Bc4+ {[%clk 0:00:59.5]} 32... Ke7 {[%clk 0:00:40.9]} 33.
Re6+ {[%clk 0:01:00.5]} 33... Kd7 {[%clk 0:00:40.6]} 34. Rxf6 {[%clk 0:00:33.7]}
34... Kc7 {[%clk 0:00:34.9]} 35. Kd3 {[%clk 0:00:24]} 35... Kb8 {[%clk 0:00:26]}
36. f3 {[%clk 0:00:25.1]} 36... Bd5 {[%clk 0:00:10.5]} 37. Rc3 {[%clk
0:00:21.1]} 37... Bc6 {[%clk 0:00:10.2]} 38. Rb3 {[%clk 0:00:17.2]} 38... Rc7
{[%clk 0:00:09.4]} 39. a6 {[%clk 0:00:16.4]} 39... Ka7 {[%clk 0:00:10.6]} 40.
axb7 {[%clk 0:00:16.8]} 40... Bxb7 {[%clk 0:00:12.5]} 41. Ra3+ {[%clk
0:00:14.7]} 41... Kb8 {[%clk 0:00:13.6]} 42. Rb6 {[%clk 0:00:10.7]} 42... Rcd7
{[%clk 0:00:09.9]} 43. Rab3 {[%clk 0:00:07.8]} 43... Rxd4+ {[%clk 0:00:09]} 44.
Ke3 {[%clk 0:00:09.2]} 44... Rxc4 {[%clk 0:00:09]} 45. Rxb7+ {[%clk 0:00:10.5]}
45... Kc8 {[%clk 0:00:10.5]} 46. Rxh7 {[%clk 0:00:11.5]} 46... Re8+ {[%clk
0:00:08.6]} 47. Kf2 {[%clk 0:00:12]} 47... Rc2+ {[%clk 0:00:09.2]} 48. Kg3
{[%clk 0:00:13.5]} 48... Ree2 {[%clk 0:00:10.6]} 49. Kf4 {[%clk 0:00:14.7]}
49... Rxg2 {[%clk 0:00:08.4]} 50. Rg7 {[%clk 0:00:15.6]} 50... Rc4+ {[%clk
0:00:08.6]} 51. Ke3 {[%clk 0:00:15.5]} 51... Rh4 {[%clk 0:00:07.5]} 52. h7
{[%clk 0:00:16.3]} 52... Rgh2 {[%clk 0:00:08.7]} 53. Rc3+ {[%clk 0:00:17.5]}
53... Kd8 {[%clk 0:00:09.4]} 54. Ra3 {[%clk 0:00:18.2]} 1-0

[Event "GrandPrix_29.05"]
[Site "Chess.com"]
[Date "2020.05.29"]
[Round "4"]
[White "Todorovic1991"]
[Black "Flawless_Fighter"]
[Result "0-1"]
[WhiteElo "1707"]
[BlackElo "2230"]
[TimeControl "600+2"]
[EndTime "11:00:54 PDT"]
[Termination "Flawless_Fighter won on time"]

1. Nf3 {[%clk 0:10:01.9]} 1... Nf6 {[%clk 0:10:00.5]} 2. c4 {[%clk 0:10:01.5]}
2... e6 {[%clk 0:10:01.1]} 3. Nc3 {[%clk 0:09:57]} 3... d5 {[%clk 0:10:01.9]} 4.
d4 {[%clk 0:09:57.5]} 4... c5 {[%clk 0:09:45.1]} 5. cxd5 {[%clk 0:09:57.2]} 5...
Nxd5 {[%clk 0:09:47]} 6. e4 {[%clk 0:09:56.3]} 6... Nxc3 {[%clk 0:09:48.4]} 7.
bxc3 {[%clk 0:09:57.2]} 7... cxd4 {[%clk 0:09:50.1]} 8. cxd4 {[%clk 0:09:58.4]}
8... Bb4+ {[%clk 0:09:51.7]} 9. Bd2 {[%clk 0:09:59.4]} 9... Bxd2+ {[%clk
0:09:53.4]} 10. Qxd2 {[%clk 0:10:00]} 10... O-O {[%clk 0:09:55.1]} 11. Bc4
{[%clk 0:09:53.3]} 11... b6 {[%clk 0:09:56.1]} 12. O-O {[%clk 0:09:53.4]} 12...
Bb7 {[%clk 0:09:54.7]} 13. Rfe1 {[%clk 0:09:53.9]} 13... Nd7 {[%clk 0:09:54.2]}
14. Rad1 {[%clk 0:09:53.9]} 14... Rc8 {[%clk 0:09:49.1]} 15. Bd3 {[%clk
0:09:52.8]} 15... h6 {[%clk 0:09:27.4]} 16. Qf4 {[%clk 0:09:42.5]} 16... Qf6
{[%clk 0:08:49.1]} 17. Qg3 {[%clk 0:09:38.8]} 17... Rfd8 {[%clk 0:08:44.3]} 18.
Bb1 {[%clk 0:09:08.3]} 18... Rc3 {[%clk 0:08:33.2]} 19. Re3 {[%clk 0:08:58.1]}
19... Rxe3 {[%clk 0:07:51.2]} 20. fxe3 {[%clk 0:08:58.1]} 20... Qe7 {[%clk
0:07:52.8]} 21. e5 {[%clk 0:08:51.1]} 21... Rc8 {[%clk 0:07:44.4]} 22. Qf4
{[%clk 0:08:27.7]} 22... b5 {[%clk 0:07:23.1]} 23. e4 {[%clk 0:08:17.1]} 23...
Nb6 {[%clk 0:06:38.1]} 24. h4 {[%clk 0:07:13.3]} 24... a5 {[%clk 0:06:17.5]} 25.
Rf1 {[%clk 0:06:54.1]} 25... b4 {[%clk 0:06:12.2]} 26. Nh2 {[%clk 0:06:42]}
26... Ba6 {[%clk 0:05:56.9]} 27. Rd1 {[%clk 0:06:30.2]} 27... Be2 {[%clk
0:04:44.3]} 28. Re1 {[%clk 0:06:29.2]} 28... Bb5 {[%clk 0:04:45.1]} 29. d5
{[%clk 0:05:46.6]} 29... exd5 {[%clk 0:03:38.4]} 30. exd5 {[%clk 0:05:46.4]}
30... Rc4 {[%clk 0:03:23.4]} 31. Qf5 {[%clk 0:05:02.4]} 31... g6 {[%clk
0:02:57.4]} 32. Qf2 {[%clk 0:05:02.4]} 32... Nxd5 {[%clk 0:02:45.6]} 33. e6
{[%clk 0:04:53.4]} 33... fxe6 {[%clk 0:01:37.1]} 34. Qg3 {[%clk 0:04:02.7]}
34... Nf4 {[%clk 0:01:18.7]} 35. Nf3 {[%clk 0:03:06.4]} 35... Qf6 {[%clk
0:00:47.4]} 36. Kh2 {[%clk 0:02:36.4]} 36... Be8 {[%clk 0:00:13.5]} 37. Rd1
{[%clk 0:00:40.9]} 37... Kg7 {[%clk 0:00:13.7]} 38. Bd3 {[%clk 0:00:32.5]} 38...
Nxd3 {[%clk 0:00:13.3]} 39. Rxd3 {[%clk 0:00:32.5]} 39... Bc6 {[%clk 0:00:11]}
40. Qc7+ {[%clk 0:00:27.2]} 40... Kf8 {[%clk 0:00:07.5]} 41. Rd8+ {[%clk
0:00:26.6]} 41... Be8 {[%clk 0:00:08.9]} 42. Qxc4 {[%clk 0:00:22.5]} 42... Qxd8
{[%clk 0:00:09.2]} 43. Qc5+ {[%clk 0:00:22.6]} 43... Qe7 {[%clk 0:00:06.6]} 44.
Qxa5 {[%clk 0:00:22.7]} 44... Qd6+ {[%clk 0:00:07.6]} 45. Kh1 {[%clk 0:00:18.1]}
45... Bc6 {[%clk 0:00:09.1]} 46. Ne5 {[%clk 0:00:10.1]} 46... Bd5 {[%clk
0:00:06.5]} 47. Nxg6+ {[%clk 0:00:05.5]} 47... Kg7 {[%clk 0:00:07.1]} 48. h5
{[%clk 0:00:06.7]} 48... Qc6 {[%clk 0:00:02.4]} 49. Qa7+ {[%clk 0:00:05.5]}
49... Kf6 {[%clk 0:00:02.5]} 50. Qd4+ {[%clk 0:00:06]} 50... Kf5 {[%clk
0:00:02.5]} 0-1

[Event "GrandPrix_29.05"]
[Site "Chess.com"]
[Date "2020.05.29"]
[Round "4"]
[White "Andrei_Belozerov"]
[Black "DinaBelenkaya"]
[Result "1-0"]
[WhiteElo "2673"]
[BlackElo "1599"]
[TimeControl "600+2"]
[EndTime "11:01:03 PDT"]
[Termination "Andrei_Belozerov won by resignation"]

1. e4 {[%clk 0:10:01.9]} 1... d5 {[%clk 0:10:00.2]} 2. exd5 {[%clk 0:10:02]}
2... Qxd5 {[%clk 0:10:02.1]} 3. Nc3 {[%clk 0:10:02.3]} 3... Qa5 {[%clk
0:10:00.6]} 4. d4 {[%clk 0:10:02.8]} 4... Nf6 {[%clk 0:09:55.3]} 5. Nf3 {[%clk
0:10:03.6]} 5... c6 {[%clk 0:09:52.2]} 6. Bc4 {[%clk 0:09:56.7]} 6... Bf5 {[%clk
0:09:51.4]} 7. Bd2 {[%clk 0:09:55.8]} 7... Qb6 {[%clk 0:09:51]} 8. O-O {[%clk
0:08:22.9]} 8... e6 {[%clk 0:09:49]} 9. Bb3 {[%clk 0:07:31.5]} 9... Be7 {[%clk
0:09:44]} 10. Be3 {[%clk 0:07:27.2]} 10... Qc7 {[%clk 0:09:35.1]} 11. Ne5 {[%clk
0:07:28.1]} 11... O-O {[%clk 0:09:16.2]} 12. g4 {[%clk 0:06:56.6]} 12... Bg6
{[%clk 0:07:47.5]} 13. h4 {[%clk 0:06:52.4]} 13... Nd5 {[%clk 0:07:14.6]} 14. h5
{[%clk 0:06:20]} 14... Nxc3 {[%clk 0:04:41.3]} 15. bxc3 {[%clk 0:06:03.9]} 15...
Be4 {[%clk 0:04:40]} 16. f3 {[%clk 0:05:57.4]} 16... Bd5 {[%clk 0:04:37.8]} 17.
c4 {[%clk 0:05:58.5]} 17... f6 {[%clk 0:04:39.2]} 18. cxd5 {[%clk 0:05:01]}
18... fxe5 {[%clk 0:04:39.8]} 19. dxe6 {[%clk 0:03:59.8]} 19... exd4 {[%clk
0:04:39.7]} 20. Bf2 {[%clk 0:03:33.4]} 20... c5 {[%clk 0:04:26.2]} 21. Kg2
{[%clk 0:03:33.4]} 21... c4 {[%clk 0:04:03.6]} 22. Ba4 {[%clk 0:03:31.5]} 22...
a6 {[%clk 0:03:54.8]} 23. Qxd4 {[%clk 0:02:06.4]} 23... b5 {[%clk 0:03:50]} 24.
h6 {[%clk 0:02:06]} 24... Bf6 {[%clk 0:03:43.9]} 25. Qd5 {[%clk 0:02:06.4]}
25... Qc6 {[%clk 0:03:41.8]} 26. Rad1 {[%clk 0:02:02.5]} 26... Qxd5 {[%clk
0:03:33.2]} 27. Rxd5 {[%clk 0:02:02.6]} 27... bxa4 {[%clk 0:03:35]} 28. hxg7
{[%clk 0:02:03.4]} 28... Kxg7 {[%clk 0:03:32.8]} 29. f4 {[%clk 0:02:01.8]} 29...
h6 {[%clk 0:03:19.7]} 30. Rb1 {[%clk 0:01:54.6]} 30... Nc6 {[%clk 0:02:45.7]}
31. Rb7+ {[%clk 0:01:52.2]} 31... Kg8 {[%clk 0:02:32.4]} 32. Rc5 {[%clk
0:01:27.1]} 32... Rac8 {[%clk 0:02:22]} 33. f5 {[%clk 0:01:18.7]} 33... Ne5
{[%clk 0:01:47.6]} 34. Kg3 {[%clk 0:01:12.4]} 34... Rxc5 {[%clk 0:01:26.7]} 35.
Bxc5 {[%clk 0:01:11]} 35... Rd8 {[%clk 0:01:13.5]} 36. Be7 {[%clk 0:01:00.8]}
36... Bxe7 {[%clk 0:01:12]} 37. Rxe7 {[%clk 0:00:59.4]} 37... Nc6 {[%clk
0:01:07.5]} 38. Rc7 {[%clk 0:00:52.7]} 38... Rd6 {[%clk 0:00:48.3]} 39. Kf4
{[%clk 0:00:36.6]} 39... c3 {[%clk 0:00:46.3]} 40. g5 {[%clk 0:00:24.5]} 40...
hxg5+ {[%clk 0:00:40.2]} 41. Kxg5 {[%clk 0:00:25.5]} 41... Ne5 {[%clk
0:00:31.7]} 42. Rc8+ {[%clk 0:00:19.2]} 42... Kh7 {[%clk 0:00:32.2]} 43. Kf6
{[%clk 0:00:18.2]} 43... Ng4+ {[%clk 0:00:26.4]} 44. Kg5 {[%clk 0:00:15.8]}
44... Ne5 {[%clk 0:00:21.3]} 45. Rxc3 {[%clk 0:00:14.1]} 45... Rd2 {[%clk
0:00:04]} 46. Rc7+ {[%clk 0:00:14.5]} 46... Kg8 {[%clk 0:00:04.6]} 47. f6 {[%clk
0:00:14.5]} 47... Nf3+ {[%clk 0:00:05.3]} 48. Kf4 {[%clk 0:00:15.2]} 48... Nd4
{[%clk 0:00:05.7]} 49. Rc8+ {[%clk 0:00:13.6]} 49... Kh7 {[%clk 0:00:06.8]} 50.
e7 {[%clk 0:00:13.6]} 50... Ne6+ {[%clk 0:00:05.3]} 51. Ke3 {[%clk 0:00:12.6]}
51... Rd1 {[%clk 0:00:04.4]} 52. e8=Q {[%clk 0:00:12.8]} 52... Re1+ {[%clk
0:00:05.6]} 53. Kd2 {[%clk 0:00:13.9]} 53... Nf4 {[%clk 0:00:05.7]} 54. Qf7+
{[%clk 0:00:10]} 1-0

[Event "GrandPrix_29.05"]
[Site "Chess.com"]
[Date "2020.05.29"]
[Round "4"]
[White "BMOchsner"]
[Black "Doukis"]
[Result "1-0"]
[WhiteElo "2171"]
[BlackElo "2185"]
[TimeControl "600+2"]
[EndTime "11:01:04 PDT"]
[Termination "BMOchsner won by resignation"]

1. e4 {[%clk 0:10:01.9]} 1... e5 {[%clk 0:10:00.6]} 2. Nf3 {[%clk 0:10:01.1]}
2... Nc6 {[%clk 0:10:00.8]} 3. Bb5 {[%clk 0:09:53.7]} 3... Nf6 {[%clk
0:10:00.7]} 4. O-O {[%clk 0:09:49.2]} 4... Nxe4 {[%clk 0:10:00.9]} 5. d4 {[%clk
0:09:50.3]} 5... Nd6 {[%clk 0:10:01.6]} 6. Bxc6 {[%clk 0:09:51.6]} 6... dxc6
{[%clk 0:10:03]} 7. dxe5 {[%clk 0:09:52.9]} 7... Nf5 {[%clk 0:10:04.4]} 8. Qxd8+
{[%clk 0:09:53.9]} 8... Kxd8 {[%clk 0:10:06.3]} 9. Rd1+ {[%clk 0:09:55]} 9...
Ke8 {[%clk 0:10:07]} 10. Nc3 {[%clk 0:09:56.2]} 10... a5 {[%clk 0:10:08]} 11. h3
{[%clk 0:09:42.7]} 11... h6 {[%clk 0:09:59.6]} 12. Bf4 {[%clk 0:08:28]} 12...
Be6 {[%clk 0:08:34.9]} 13. g4 {[%clk 0:07:58]} 13... Ne7 {[%clk 0:08:34.2]} 14.
Nd4 {[%clk 0:07:56.5]} 14... Bd7 {[%clk 0:08:33.4]} 15. Re1 {[%clk 0:07:37.9]}
15... Nd5 {[%clk 0:05:21]} 16. Nxd5 {[%clk 0:06:48.6]} 16... cxd5 {[%clk
0:05:22.9]} 17. e6 {[%clk 0:06:49.6]} 17... fxe6 {[%clk 0:05:23.1]} 18. Bxc7
{[%clk 0:06:13.7]} 18... Kf7 {[%clk 0:05:13.3]} 19. Nf3 {[%clk 0:05:47]} 19...
Be8 {[%clk 0:04:53.6]} 20. Rad1 {[%clk 0:05:20.4]} 20... Bc5 {[%clk 0:03:45.4]}
21. Ne5+ {[%clk 0:05:17.5]} 21... Ke7 {[%clk 0:03:32.5]} 22. Nd3 {[%clk
0:05:12.7]} 22... Bd6 {[%clk 0:02:50.3]} 23. Bxd6+ {[%clk 0:05:12.5]} 23... Kxd6
{[%clk 0:02:52.2]} 24. c4 {[%clk 0:05:03]} 24... Rf8 {[%clk 0:02:03.2]} 25. Re3
{[%clk 0:04:08.6]} 25... Rc8 {[%clk 0:01:37.5]} 26. b3 {[%clk 0:03:30.3]} 26...
a4 {[%clk 0:01:25]} 27. c5+ {[%clk 0:02:51.4]} 27... Ke7 {[%clk 0:01:25.8]} 28.
b4 {[%clk 0:02:43.3]} 28... Bb5 {[%clk 0:01:21.8]} 29. Ne5 {[%clk 0:02:38.9]}
29... Rf6 {[%clk 0:01:12.3]} 30. f4 {[%clk 0:02:17.5]} 30... Kf8 {[%clk
0:00:59.3]} 31. Kh2 {[%clk 0:02:01.5]} 31... Kg8 {[%clk 0:00:53.5]} 32. Kg3
{[%clk 0:02:01.9]} 32... Rcf8 {[%clk 0:00:52.6]} 33. Rd4 {[%clk 0:01:43.3]}
33... Kh7 {[%clk 0:00:34.5]} 34. h4 {[%clk 0:01:43.5]} 34... g5 {[%clk
0:00:27.3]} 35. hxg5 {[%clk 0:01:40]} 35... hxg5 {[%clk 0:00:28.3]} 36. fxg5
{[%clk 0:01:36.5]} 36... Rf1 {[%clk 0:00:29.2]} 37. Nf3 {[%clk 0:01:09.1]} 37...
Bd7 {[%clk 0:00:19.7]} 38. a3 {[%clk 0:00:55.4]} 38... Kg7 {[%clk 0:00:19.1]}
39. Kg2 {[%clk 0:00:40.3]} 39... Ra1 {[%clk 0:00:18.6]} 40. Ne5 {[%clk 0:00:39]}
40... Bb5 {[%clk 0:00:18.5]} 41. Nf3 {[%clk 0:00:33.8]} 41... Ra2+ {[%clk
0:00:17.5]} 42. Kg3 {[%clk 0:00:33.5]} 42... Ra1 {[%clk 0:00:17.8]} 43. Rxe6
{[%clk 0:00:30.4]} 43... Rxa3 {[%clk 0:00:17.5]} 44. Rf4 {[%clk 0:00:30.2]}
44... Rxf4 {[%clk 0:00:14.8]} 45. Kxf4 {[%clk 0:00:31.5]} 45... Ra1 {[%clk
0:00:10.3]} 46. Nd4 {[%clk 0:00:26.6]} 46... Bd3 {[%clk 0:00:10.8]} 47. Nf5+
{[%clk 0:00:15.2]} 47... Bxf5 {[%clk 0:00:11.7]} 48. gxf5 {[%clk 0:00:15.9]}
48... a3 {[%clk 0:00:13.2]} 49. Re7+ {[%clk 0:00:14.1]} 49... Kf8 {[%clk
0:00:14.1]} 50. Rxb7 {[%clk 0:00:14.9]} 50... a2 {[%clk 0:00:14.5]} 51. Ra7
{[%clk 0:00:14.6]} 51... Rf1+ {[%clk 0:00:16]} 52. Ke5 {[%clk 0:00:15.9]} 52...
a1=Q+ {[%clk 0:00:17.2]} 53. Rxa1 {[%clk 0:00:17.1]} 53... Rxa1 {[%clk
0:00:18.6]} 54. Kxd5 {[%clk 0:00:18]} 54... Rb1 {[%clk 0:00:17.6]} 55. c6 {[%clk
0:00:18]} 55... Ke7 {[%clk 0:00:15.2]} 56. f6+ {[%clk 0:00:19.2]} 56... Kf7
{[%clk 0:00:11.9]} 57. c7 {[%clk 0:00:20.5]} 57... Rc1 {[%clk 0:00:11.8]} 58.
Kd6 {[%clk 0:00:21.9]} 58... Rd1+ {[%clk 0:00:12.8]} 59. Kc6 {[%clk 0:00:23.2]}
59... Rc1+ {[%clk 0:00:11.8]} 60. Kb7 {[%clk 0:00:24.3]} 1-0